bitfinex-derivatives/quotes_BTCF0:USTF0_20251216
["timestamp","ask_amount","ask_price","bid_price","bid_amount"]
[1765926105711,0.0567,87854.0,87853.0,0.0698951]
[1765926106007,0.00017078,87855.0,87854.0,0.05851]
[1765926106509,0.00017078,87855.0,87854.0,0.41931]
[1765926107607,0.15561711,87870.0,87857.0,0.05851]
[1765926107800,0.0113832,87868.0,87857.0,0.05851]
[1765926108000,0.0113834,87866.0,87857.0,0.05851]
[1765926108608,0.01155418,87866.0,87857.0,0.05851]
[1765926110913,0.00017078,87866.0,87857.0,0.05851]
[1765926117216,0.00017078,87866.0,87857.0,0.0698946]
[1765926118517,0.00017078,87866.0,87857.0,0.4306946]
[1765926119404,0.0113836,87865.0,87857.0,0.4306946]
[1765926120116,0.0113839,87862.0,87857.0,0.4306946]
[1765926121015,0.03020641,87858.0,87857.0,0.4306946]
[1765926121318,0.05897641,87858.0,87857.0,0.4306946]
[1765926121515,0.05897641,87858.0,87857.0,0.3608]
[1765926122012,0.05897641,87858.0,87851.0,1.13127]
[1765926122013,0.07356,87852.0,87851.0,1.13127]
[1765926123804,0.07356,87852.0,87851.0,0.41931]
[1765926124212,0.11356,87852.0,87851.0,0.3618]
[1765926124508,0.11356,87852.0,87851.0,0.001]
[1765926124714,0.07356,87852.0,87851.0,0.001]
[1765926125113,0.05722,87856.0,87855.0,0.0703148]
[1765926127016,0.00227641,87858.0,87855.0,0.0409548]
[1765926127222,0.03020641,87858.0,87857.0,0.05893]
[1765926127422,0.05949641,87858.0,87857.0,0.05893]
[1765926132719,0.0854752,87852.0,87851.0,0.4311153]
[1765926133919,0.0854752,87852.0,87851.0,0.4321153]
[1765926135318,0.0854752,87852.0,87851.0,0.42073]
[1765926140230,0.0854752,87852.0,87851.0,0.05993]
[1765926140730,0.0854752,87852.0,87851.0,0.0713154]
[1765926153234,0.07409,87852.0,87851.0,0.0713154]
[1765926162238,0.05606,87851.0,87850.0,0.35203147]
[1765926162441,0.05606,87851.0,87838.0,0.00017078]
[1765926162442,0.05606,87839.0,87838.0,0.00017078]
[1765926162736,0.0674478,87832.0,87831.0,0.3608]
[1765926162941,0.067449,87823.0,87822.0,0.3608]
[1765926163239,0.067449,87823.0,87818.0,0.00012876]
[1765926163240,0.0838795,87819.0,87818.0,0.00012876]
[1765926163434,0.4846795,87819.0,87818.0,0.00012876]
[1765926163947,0.4446795,87819.0,87818.0,0.05907876]
[1765926164137,0.4446795,87819.0,87818.0,0.02977876]
[1765926164441,0.43329,87819.0,87818.0,0.05907876]
[1765926164633,0.00017078,87827.0,87826.0,0.05895]
[1765926165031,0.02815078,87827.0,87826.0,0.05895]
[1765926165450,0.05623078,87827.0,87826.0,0.05895]
[1765926166943,0.05623078,87827.0,87826.0,0.05995]
[1765926167336,0.05623078,87827.0,87826.0,0.06095]
[1765926168443,0.10761928,87827.0,87826.0,0.002]
[1765926168952,0.10761928,87827.0,87826.0,0.001]
[1765926169149,0.10761928,87827.0,87826.0,0.00025422]
[1765926169550,0.1340989,87827.0,87826.0,0.00025422]
[1765926169754,0.0674495,87819.0,87818.0,0.00012876]
[1765926169949,0.0674506,87811.0,87810.0,0.00017078]
[1765926170246,0.0674506,87811.0,87810.0,0.01156148]
[1765926170247,0.4282506,87811.0,87810.0,0.01156148]
[1765926170641,0.4282506,87811.0,87810.0,0.04121148]
[1765926171146,0.42839261,87811.0,87810.0,0.04121148]
[1765926172855,0.42839261,87811.0,87810.0,0.07051148]
[1765926173950,0.42939261,87811.0,87810.0,0.07051148]
[1765926174337,0.42939261,87811.0,87810.0,0.01156148]
[1765926175847,0.42939261,87811.0,87810.0,0.07051148]
[1765926176054,0.41800201,87811.0,87810.0,0.07051148]
[1765926176745,0.41900201,87811.0,87810.0,0.07051148]
[1765926176952,0.41800201,87811.0,87810.0,0.07051148]
[1765926177656,0.41700201,87811.0,87810.0,0.07051148]
[1765926180057,0.41700201,87811.0,87810.0,0.05912078]
[1765926180356,0.45700201,87811.0,87810.0,0.00017078]
[1765926180655,0.45700201,87811.0,87809.0,0.0703408]
[1765926180656,0.07249,87810.0,87809.0,0.0703408]
[1765926181154,0.05620201,87811.0,87810.0,0.05895]
[1765926181357,0.05620201,87811.0,87810.0,0.02965]
[1765926181854,0.05606,87809.0,87808.0,0.39045]
[1765926182155,0.09606,87809.0,87808.0,0.3608]
[1765926182357,0.05606,87803.0,87802.0,0.02982078]
[1765926183348,0.09606,87803.0,87802.0,0.00017078]
[1765926183556,0.05706,87803.0,87802.0,0.00017078]
[1765926183755,0.05706,87803.0,87802.0,0.05912078]
[1765926183756,0.05806,87803.0,87802.0,0.05912078]
[1765926185162,0.04383,87810.0,87809.0,0.05714]
[1765926185362,0.07159,87810.0,87809.0,0.05714]
[1765926185562,0.0274,87810.0,87809.0,0.0685308]
[1765926185861,0.07303,87810.0,87809.0,0.0685308]
[1765926186862,0.07303,87810.0,87809.0,0.0695308]
[1765926187759,0.07303,87810.0,87809.0,0.001]
[1765926188850,0.05516,87807.0,87806.0,0.0685311]
[1765926189260,0.0284,87810.0,87809.0,0.0685308]
[1765926189954,0.0274,87810.0,87809.0,0.0685308]
[1765926190672,0.05516,87810.0,87809.0,0.0685308]
[1765926191361,0.0665508,87809.0,87808.0,0.3608]
[1765926192563,0.09352928,87809.0,87808.0,0.3608]
[1765926192767,0.09452928,87809.0,87808.0,0.3608]
[1765926193152,0.09552928,87809.0,87808.0,0.3608]
[1765926196464,0.09552928,87809.0,87808.0,0.41794]
[1765926196762,0.09552928,87809.0,87808.0,0.4293309]
[1765926196964,0.002,87809.0,87808.0,0.4293309]
[1765926197162,0.05716,87809.0,87808.0,0.4293309]
[1765926197568,0.00014201,87811.0,87810.0,0.0685307]
[1765926198360,0.02714285,87811.0,87810.0,0.0685307]
[1765926198754,0.00014201,87811.0,87810.0,0.0685307]
[1765926199363,0.00014201,87811.0,87810.0,0.0695307]
[1765926200766,0.00014201,87811.0,87810.0,0.0705307]
[1765926200968,0.05530201,87811.0,87810.0,0.0705307]
[1765926201164,0.02714862,87811.0,87810.0,0.0705307]
[1765926201372,0.02714862,87811.0,87810.0,0.0866007]
[1765926201373,0.00014201,87811.0,87810.0,0.0866007]
[1765926201974,0.00014201,87811.0,87810.0,0.0705307]
[1765926202174,0.00014201,87811.0,87810.0,0.0695307]
[1765926202566,0.00014201,87811.0,87810.0,0.0685307]
[1765926204065,0.00014201,87811.0,87810.0,0.0695307]
[1765926204267,0.00014201,87811.0,87810.0,0.0705307]
[1765926206577,0.02754201,87811.0,87810.0,0.0705307]
[1765926206780,0.0936986,87811.0,87810.0,0.002]
[1765926206971,0.082308,87811.0,87810.0,0.0705307]
[1765926207279,0.05530201,87811.0,87810.0,0.0705307]
[1765926207868,0.05630201,87811.0,87810.0,0.0695307]
[1765926208068,0.05730201,87811.0,87810.0,0.0685307]
[1765926208577,0.08230852,87811.0,87810.0,0.0685307]
[1765926208970,0.05516,87803.0,87802.0,0.02939078]
[1765926209169,0.05516,87803.0,87802.0,0.05731078]
[1765926209380,0.0665516,87803.0,87802.0,0.05731078]
[1765926209569,0.13356256,87803.0,87802.0,0.00017078]
[1765926211071,0.13456256,87803.0,87802.0,0.00017078]
[1765926211480,0.13556256,87803.0,87802.0,0.00017078]
[1765926212477,0.0665539,87785.0,87784.0,0.02922]
[1765926212681,0.05516,87779.0,87778.0,0.05714]
[1765926213082,0.05516,87779.0,87778.0,0.0685348]
[1765926213674,0.05516,87779.0,87778.0,0.0705348]
[1765926214182,0.05516,87779.0,87778.0,0.0725348]
[1765926214376,0.05516,87779.0,87778.0,0.03322]
[1765926214585,0.09516,87779.0,87778.0,0.03322]
[1765926214782,0.05516,87779.0,87778.0,0.03322]
[1765926215687,0.05516,87779.0,87778.0,0.06042]
[1765926217091,0.05516,87779.0,87778.0,0.004]
[1765926218994,0.05782,87771.0,87770.0,0.00030092]
[1765926219196,0.45862,87771.0,87770.0,0.00030092]
[1765926220488,0.45862,87771.0,87770.0,0.00330092]
[1765926221984,0.05782,87757.0,87756.0,0.0399177]
[1765926222190,0.05782,87757.0,87756.0,0.0681177]
[1765926222887,0.05791664,87757.0,87756.0,0.0681177]
[1765926223190,0.05782,87741.0,87740.0,0.4289198]
[1765926223785,0.07417,87745.0,87744.0,0.0681192]
[1765926225196,0.07417,87745.0,87744.0,0.0691192]
[1765926225391,0.02918,87745.0,87744.0,0.0691192]
[1765926225589,0.13714809,87754.0,87751.0,0.0681183]
[1765926225787,0.0277474,87759.0,87752.0,0.05672]
[1765926225991,0.41862,87753.0,87752.0,0.05672]
[1765926227392,0.41962,87753.0,87752.0,0.05672]
[1765926228201,0.05882,87753.0,87752.0,0.05672]
[1765926231601,0.001,87753.0,87752.0,0.05672]
[1765926232602,0.03018,87753.0,87752.0,0.05672]
[1765926232896,0.001,87753.0,87752.0,0.05672]
[1765926233201,0.15349809,87762.0,87756.0,0.05672]
[1765926233401,0.027747,87762.0,87756.0,0.0681177]
[1765926234395,0.01635,87762.0,87756.0,0.0681177]
[1765926234598,0.00017088,87765.0,87756.0,0.0681177]
[1765926234891,0.00017088,87765.0,87756.0,0.0841877]
[1765926235090,0.01156738,87765.0,87756.0,0.0841877]
[1765926236002,0.01156738,87765.0,87756.0,0.0851877]
[1765926236200,0.01156738,87765.0,87756.0,0.0861877]
[1765926236502,0.00017088,87765.0,87756.0,0.0861877]
[1765926238099,0.00017088,87765.0,87756.0,0.4469877]
[1765926238300,0.00017088,87765.0,87764.0,0.0681167]
[1765926238605,0.00017088,87765.0,87764.0,0.4289167]
[1765926239194,0.00030769,87765.0,87764.0,0.4289167]
[1765926239505,0.0405743,87783.0,87782.0,0.011394]
[1765926239690,0.02918,87783.0,87782.0,0.068114]
[1765926239894,0.05782,87783.0,87782.0,0.068114]
[1765926240494,0.05788169,87783.0,87782.0,0.068114]
[1765926241204,0.08474079,87783.0,87782.0,0.068114]
[1765926241407,0.08574079,87783.0,87782.0,0.068114]
[1765926241596,0.05782,87777.0,87776.0,0.38932]
[1765926241798,0.05782,87777.0,87776.0,0.3608]
[1765926242102,0.05782,87777.0,87774.0,0.00017088]
[1765926242103,0.05782,87775.0,87774.0,0.00017088]
[1765926242304,0.12468122,87775.0,87774.0,0.00017088]
[1765926244106,0.12668122,87775.0,87774.0,0.00017088]
[1765926244697,0.12868122,87775.0,87774.0,0.00017088]
[1765926245907,0.48948122,87775.0,87774.0,0.00017088]
[1765926247803,0.48948122,87775.0,87774.0,0.06750628]
[1765926247804,0.44948122,87775.0,87774.0,0.06750628]
[1765926248303,0.44948122,87775.0,87774.0,0.02761088]
[1765926248304,0.48948122,87775.0,87774.0,0.02761088]
[1765926248498,0.48948122,87775.0,87774.0,0.00017088]
[1765926248899,0.48748122,87775.0,87774.0,0.00017088]
[1765926249299,0.0706268,87763.0,87762.0,0.0113968]
[1765926249809,0.0706268,87763.0,87762.0,0.0388368]
[1765926250005,0.0706268,87763.0,87762.0,0.0673368]
[1765926250404,0.0716268,87763.0,87762.0,0.0673368]
[1765926251409,0.0726268,87763.0,87762.0,0.0673368]
[1765926251595,0.0726268,87763.0,87762.0,0.0388368]
[1765926251912,0.0716268,87763.0,87762.0,0.0388368]
[1765926252110,0.0726268,87763.0,87762.0,0.0673368]
[1765926252801,0.0716268,87763.0,87762.0,0.0673368]
[1765926253002,0.0726268,87763.0,87762.0,0.0673368]
[1765926255414,0.0726268,87763.0,87762.0,0.0388368]
[1765926255705,0.070627,87761.0,87760.0,0.38824]
[1765926255907,0.0706281,87753.0,87752.0,0.0673381]
[1765926256102,0.0706281,87753.0,87752.0,0.05594]
[1765926256413,0.0706285,87750.0,87749.0,0.02744]
[1765926256707,0.0706285,87750.0,87749.0,0.05594]
[1765926257103,0.09754812,87750.0,87749.0,0.05594]
[1765926257803,0.05923,87742.0,87741.0,0.4281396]
[1765926259003,0.0706295,87742.0,87741.0,0.4301396]
[1765926259400,0.0706295,87742.0,87741.0,0.4321396]
[1765926264820,0.1106295,87742.0,87741.0,0.05994]
[1765926266418,0.1116295,87742.0,87741.0,0.05794]
[1765926267204,0.0716295,87742.0,87741.0,0.05794]
[1765926267409,0.0133995,87742.0,87741.0,0.05594]
[1765926267605,0.0428895,87742.0,87741.0,0.05594]
[1765926267814,0.0716295,87742.0,87741.0,0.05594]
[1765926268018,0.0133995,87742.0,87741.0,0.05594]
[1765926268222,0.0428895,87742.0,87741.0,0.05594]
[1765926268413,0.0418895,87742.0,87741.0,0.05594]
[1765926268614,0.0716295,87742.0,87741.0,0.05594]
[1765926270115,0.0706295,87742.0,87741.0,0.05594]
[1765926270426,0.0716295,87742.0,87741.0,0.05594]
[1765926271221,0.001,87742.0,87741.0,0.05594]
[1765926271525,0.06023,87742.0,87741.0,0.05594]
[1765926272226,0.001,87742.0,87741.0,0.05694]
[1765926272422,0.0113988,87748.0,87747.0,0.05594]
[1765926272825,0.01643088,87750.0,87742.0,0.3608]
[1765926272826,0.00017088,87750.0,87749.0,0.05594]
[1765926274225,0.00017088,87750.0,87749.0,0.05694]
[1765926274425,0.00017088,87750.0,87749.0,0.05794]
[1765926275123,0.15349949,87780.0,87760.0,0.0683072]
[1765926275326,0.01626,87774.0,87760.0,0.4291072]
[1765926276031,0.00017088,87769.0,87760.0,0.4291072]
[1765926276324,0.00017088,87769.0,87768.0,0.0655861]
[1765926277631,0.02971088,87769.0,87768.0,0.0655861]
[1765926277931,0.05704088,87769.0,87768.0,0.0655861]
[1765926278833,0.05704088,87769.0,87768.0,0.0665861]
[1765926279925,0.00017088,87769.0,87768.0,0.0665861]
[1765926280124,0.00017088,87769.0,87768.0,0.4434561]
[1765926280828,0.3608,87784.0,87768.0,0.4434561]
[1765926280829,0.05687,87784.0,87783.0,0.0385242]
[1765926281033,0.04593,87786.0,87785.0,0.05419]
[1765926281227,0.07326,87786.0,87785.0,0.05419]
[1765926283332,0.07526,87786.0,87785.0,0.05419]
[1765926283742,0.07626,87786.0,87785.0,0.05419]
[1765926283930,0.07526,87786.0,87785.0,0.05419]
[1765926284940,0.07426,87786.0,87785.0,0.05419]
[1765926288730,0.05787,87786.0,87785.0,0.05419]
[1765926289835,0.05687,87786.0,87785.0,0.05419]
[1765926290341,0.05687,87786.0,87785.0,0.0655839]
[1765926290838,0.05687,87792.0,87791.0,0.0655831]
[1765926291039,0.02954,87792.0,87791.0,0.0655831]
[1765926291236,0.05687,87792.0,87791.0,0.0655831]
[1765926291635,0.07408,87792.0,87791.0,0.0655831]
[1765926293146,0.00017088,87794.0,87793.0,0.0655829]
[1765926293348,0.05704088,87794.0,87793.0,0.0655829]
[1765926296346,0.05804088,87794.0,87793.0,0.0655829]
[1765926297546,0.05804088,87794.0,87793.0,0.0113929]
[1765926297756,0.07408,87792.0,87791.0,0.3608]
[1765926297954,0.07408,87792.0,87791.0,0.38786]
[1765926298662,0.07408,87792.0,87791.0,0.41499]
[1765926300158,0.07508,87792.0,87791.0,0.41499]
[1765926300562,0.07408,87792.0,87791.0,0.41499]
[1765926300766,0.07508,87792.0,87791.0,0.41499]
[1765926301062,0.07608,87792.0,87791.0,0.41499]
[1765926301862,0.002,87792.0,87791.0,0.41499]
[1765926302563,0.03154,87792.0,87791.0,0.41499]
[1765926303167,0.03054,87792.0,87791.0,0.41499]
[1765926303565,0.126473,87792.0,87791.0,0.3608]
[1765926303764,0.01721,87786.0,87782.0,0.38786]
[1765926303966,0.0690242,87783.0,87782.0,0.38786]
[1765926304460,0.0690242,87783.0,87782.0,0.4159]
[1765926305565,0.0710242,87783.0,87782.0,0.4159]
[1765926306163,0.05763,87778.0,87777.0,0.02740088]
[1765926306360,0.09763,87778.0,87777.0,0.00017088]
[1765926306559,0.09763,87778.0,87755.0,0.4274678]
[1765926306560,0.07452,87756.0,87755.0,0.4274678]
[1765926306765,0.04556,87768.0,87767.0,0.05527]
[1765926306960,0.07452,87768.0,87767.0,0.05527]
[1765926307269,0.02867,87774.0,87773.0,0.0666655]
[1765926307459,0.001,87778.0,87773.0,0.0666655]
[1765926307665,0.05863,87778.0,87777.0,0.066665]
[1765926307866,0.08604334,87778.0,87777.0,0.066665]
[1765926308171,0.08504334,87778.0,87777.0,0.066665]
[1765926308468,0.05863,87778.0,87777.0,0.066665]
[1765926308765,0.02967,87778.0,87777.0,0.066665]
[1765926308962,0.05763,87778.0,87777.0,0.066665]
[1765926309566,0.05763,87778.0,87777.0,0.038625]
[1765926309973,0.05763,87778.0,87777.0,0.02723]
[1765926310165,0.05763,87778.0,87777.0,0.05527]
[1765926310365,0.05763,87778.0,87777.0,0.05627]
[1765926311065,0.05763,87778.0,87777.0,0.05527]
[1765926312067,0.02867,87780.0,87779.0,0.05527]
[1765926312370,0.05609026,87780.0,87779.0,0.05527]
[1765926312572,0.05763,87780.0,87779.0,0.05527]
[1765926313473,0.05780088,87784.0,87783.0,0.0666642]
[1765926313674,0.08515362,87784.0,87783.0,0.0666642]
[1765926318374,0.00017088,87784.0,87783.0,0.0666642]
[1765926319475,0.00017088,87784.0,87783.0,0.0676642]
[1765926319877,0.07452,87798.0,87797.0,0.0666624]
[1765926320071,0.14186693,87798.0,87797.0,0.0666624]
[1765926321682,0.14286693,87798.0,87797.0,0.0666624]
[1765926326284,0.15425913,87798.0,87797.0,0.0666624]
[1765926326485,0.15425913,87798.0,87797.0,0.02723]
[1765926326687,0.0690229,87793.0,87792.0,0.066663]
[1765926327292,0.05763,87790.0,87789.0,0.06683428]
[1765926328582,0.05763,87790.0,87789.0,0.06783428]
[1765926329089,0.05763,87790.0,87789.0,0.06683428]
[1765926333387,0.0690233,87790.0,87789.0,0.06683428]
[1765926333588,0.1090233,87790.0,87789.0,0.00017088]
[1765926333790,0.13638075,87790.0,87789.0,0.00017088]
[1765926334384,0.13638075,87790.0,87768.0,0.3608]
[1765926334385,0.05952,87769.0,87768.0,0.41727]
[1765926334685,0.05952,87769.0,87768.0,0.3608]
[1765926334885,0.05952,87769.0,87768.0,0.41727]
[1765926335694,0.05952,87769.0,87760.0,0.00017088]
[1765926335695,0.05647,87761.0,87760.0,0.05666088]
[1765926336694,0.05647,87761.0,87760.0,0.04061808]
[1765926337091,0.05647,87761.0,87760.0,0.06805808]
[1765926343501,0.05747,87761.0,87760.0,0.06805808]
[1765926345095,0.02853,87761.0,87760.0,0.06805808]
[1765926345300,0.05747,87761.0,87760.0,0.06805808]
[1765926345501,0.05747,87761.0,87760.0,0.00017088]
[1765926346005,0.05647,87761.0,87760.0,0.02922088]
[1765926346299,0.07647,87761.0,87760.0,0.05666088]
[1765926346501,0.05647,87761.0,87760.0,0.05666088]
[1765926346691,0.05747,87761.0,87760.0,0.05666088]
[1765926347502,0.05847,87761.0,87760.0,0.05666088]
[1765926347997,0.05747,87761.0,87760.0,0.05666088]
[1765926349003,0.05647,87761.0,87760.0,0.05666088]
[1765926349798,0.05647,87761.0,87760.0,0.06805808]
[1765926355209,0.05647,87764.0,87763.0,0.0678868]
[1765926358807,0.3608,87769.0,87768.0,0.05649]
[1765926359012,0.05647,87774.0,87773.0,0.0678855]
[1765926360720,0.05647,87774.0,87773.0,0.0688855]
[1765926360927,0.05647,87774.0,87773.0,0.05749]
[1765926361727,0.05647,87774.0,87773.0,0.05849]
[1765926362333,0.05747,87774.0,87773.0,0.05649]
[1765926362518,0.05847,87774.0,87773.0,0.05649]
[1765926363027,0.05747,87774.0,87773.0,0.05649]
[1765926363528,0.05647,87774.0,87773.0,0.05649]
[1765926365928,0.02900088,87777.0,87776.0,0.05566]
[1765926366129,0.02739224,87777.0,87776.0,0.05566]
[1765926367327,0.00017088,87777.0,87776.0,0.41646]
[1765926368429,0.00017088,87777.0,87776.0,0.41746]
[1765926368632,0.00017088,87777.0,87776.0,0.41846]
[1765926369125,0.00017088,87777.0,87776.0,0.41646]
[1765926369331,0.00017088,87777.0,87776.0,0.41846]
[1765926371037,0.00017088,87777.0,87776.0,0.41746]
[1765926371229,0.00017088,87777.0,87776.0,1.1311]
[1765926371535,0.18264617,87790.0,87789.0,0.05566]
[1765926371735,0.0281128,87795.0,87776.0,1.07444]
[1765926371736,0.07529,87795.0,87794.0,0.0113928]
[1765926372029,0.10248691,87795.0,87794.0,0.0670528]
[1765926373024,0.10348691,87795.0,87794.0,0.0670528]
[1765926373734,0.07629,87795.0,87794.0,0.0670528]
[1765926373928,0.06057,87795.0,87794.0,0.0670528]
[1765926374126,0.002,87795.0,87794.0,0.0670528]
[1765926374525,0.001,87795.0,87794.0,0.0670528]
[1765926374729,0.05857,87800.0,87799.0,0.0670521]
[1765926375136,0.07529,87800.0,87799.0,0.0670521]
[1765926376334,0.07529,87800.0,87799.0,0.0113921]
[1765926376631,0.07529,87800.0,87799.0,0.0670521]
[1765926377033,0.0866826,87795.0,87794.0,0.001]
[1765926377334,0.0699637,87787.0,87779.0,0.0113947]
[1765926377535,0.49779769,87787.0,87763.0,0.3608]
[1765926377729,0.49779769,87787.0,87772.0,0.0113956]
[1765926377929,0.49779769,87787.0,87771.0,0.0113957]
[1765926378129,0.49779769,87787.0,87773.0,0.0113955]
[1765926378530,0.49879769,87787.0,87773.0,0.0113955]
[1765926379426,0.49879769,87787.0,87775.0,0.0113952]
[1765926379632,0.49879769,87787.0,87766.0,0.0113964]
[1765926379941,0.49779769,87787.0,87778.0,0.0113947]
[1765926380133,0.50079769,87787.0,87778.0,0.0113947]
[1765926380333,0.50379769,87787.0,87786.0,0.00117088]
[1765926381039,0.50279769,87787.0,87786.0,0.00017088]
[1765926381636,0.50179769,87787.0,87786.0,0.00017088]
[1765926383037,0.50179769,87787.0,87786.0,0.05583088]
[1765926383239,0.49979769,87787.0,87786.0,0.05583088]
[1765926383442,0.50179769,87787.0,87786.0,0.02853088]
[1765926383641,0.50179769,87787.0,87786.0,0.00017088]
[1765926383839,0.49979769,87787.0,87786.0,0.00017088]
[1765926384148,0.50179769,87787.0,87786.0,0.00017088]
[1765926385343,0.50079769,87787.0,87786.0,0.00017088]
[1765926385945,0.50079769,87787.0,87786.0,0.02853088]
[1765926386846,0.49879769,87787.0,87786.0,0.02853088]
[1765926387036,0.49979769,87787.0,87786.0,0.02853088]
[1765926390144,0.49979769,87787.0,87786.0,0.06722468]
[1765926390341,0.49979769,87787.0,87786.0,0.00017088]
[1765926391344,0.49879769,87787.0,87786.0,0.00017088]
[1765926391549,0.49979769,87787.0,87786.0,0.00017088]
[1765926392147,0.49979769,87787.0,87786.0,0.02853088]
[1765926392348,0.49879769,87787.0,87786.0,0.02853088]
[1765926392548,0.49979769,87787.0,87786.0,0.00017088]
[1765926397754,0.49979769,87787.0,87786.0,0.02754088]
[1765926400452,0.49979769,87787.0,87786.0,0.00017088]
[1765926405054,0.49979769,87787.0,87786.0,0.02975088]
[1765926405254,0.49979769,87787.0,87786.0,0.05800088]
[1765926406147,0.49979769,87787.0,87786.0,0.00017088]
[1765926406657,0.49979769,87787.0,87768.0,0.05783]
[1765926406658,0.01743,87772.0,87768.0,0.05783]
[1765926406856,0.05703,87769.0,87768.0,0.05783]
[1765926407752,0.068426,87769.0,87768.0,0.069226]
[1765926407954,0.07446,87776.0,87775.0,0.0692252]
[1765926408158,0.09550324,87776.0,87775.0,0.0692252]
[1765926409259,0.0684255,87773.0,87772.0,0.0409756]
[1765926409560,0.0684255,87773.0,87772.0,0.0692256]
[1765926410260,0.068426,87769.0,87768.0,0.069226]
[1765926410557,0.068426,87769.0,87768.0,0.05783]
[1765926413360,0.068427,87761.0,87760.0,0.05800088]
[1765926414159,0.068427,87761.0,87760.0,0.00017088]
[1765926414554,0.108427,87761.0,87760.0,0.00017088]
[1765926414760,0.05703,87752.0,87751.0,0.41863]
[1765926415857,0.05703,87752.0,87751.0,0.41963]
[1765926416059,0.0684282,87752.0,87751.0,0.41963]
[1765926416260,0.1084282,87752.0,87751.0,0.05883]
[1765926416657,0.1084282,87752.0,87751.0,0.001]
[1765926417051,0.0849998,87740.0,87739.0,0.05783]
[1765926417452,0.0849998,87740.0,87739.0,0.0692299]
[1765926417657,0.1249998,87740.0,87739.0,0.05783]
[1765926418061,0.05703,87739.0,87738.0,0.03185953]
[1765926418265,0.05703,87739.0,87738.0,0.06010953]
[1765926419166,0.05703,87739.0,87738.0,0.06210953]
[1765926419863,0.09703,87739.0,87738.0,0.06210953]
[1765926420066,0.05703,87739.0,87738.0,0.06210953]
[1765926420264,0.05703,87739.0,87738.0,0.06410953]
[1765926425161,0.0273,87739.0,87738.0,0.06410953]
[1765926425762,0.05458,87739.0,87738.0,0.06410953]
[1765926427967,0.02797088,87748.0,87747.0,0.05631]
[1765926428174,0.05525088,87748.0,87747.0,0.0677089]
[1765926428364,0.09525088,87748.0,87747.0,0.02777]
[1765926428558,0.10664958,87748.0,87747.0,0.02777]
[1765926429274,0.10664958,87748.0,87747.0,0.0677089]
[1765926429874,0.10664958,87748.0,87747.0,0.0687089]
[1765926430081,0.10664958,87748.0,87747.0,0.0697089]
[1765926430780,0.05525088,87748.0,87747.0,0.0697089]
[1765926430973,0.00017088,87748.0,87747.0,0.0697089]
[1765926432778,0.0664777,87756.0,87755.0,0.0677078]
[1765926432971,0.0842077,87756.0,87755.0,0.0677078]
[1765926433773,0.05508,87756.0,87755.0,0.0677078]
[1765926434080,0.05608,87756.0,87755.0,0.0677078]
[1765926435374,0.0852077,87756.0,87755.0,0.0677078]
[1765926435779,0.07381,87756.0,87755.0,0.0687078]
[1765926435973,0.05608,87756.0,87755.0,0.0687078]
[1765926436176,0.05508,87756.0,87755.0,0.0687078]
[1765926436976,0.0278,87762.0,87761.0,0.067707]
[1765926437572,0.05508,87762.0,87761.0,0.067707]
[1765926438171,0.11281,87762.0,87761.0,0.05631]
[1765926438378,0.0664776,87757.0,87756.0,0.02777]
[1765926438575,0.07281,87756.0,87755.0,0.001]
[1765926438890,0.07281,87756.0,87755.0,0.002]
[1765926439272,0.07281,87756.0,87755.0,0.0687078]
[1765926439477,0.07281,87756.0,87755.0,0.0677078]
[1765926440382,0.07381,87756.0,87755.0,0.0677078]
[1765926440889,0.07381,87756.0,87755.0,0.0391678]
[1765926443088,0.07381,87756.0,87755.0,0.0677078]
[1765926444077,0.0664787,87748.0,87747.0,0.01156978]
[1765926444385,0.1064787,87748.0,87747.0,0.00017088]
[1765926445090,0.0664787,87748.0,87747.0,0.01156978]
[1765926445478,0.0664787,87748.0,87747.0,0.01256978]
[1765926446079,0.0664787,87748.0,87747.0,0.01356978]
[1765926447897,0.0664787,87748.0,87747.0,0.06987978]
[1765926448502,0.09361294,87748.0,87747.0,0.06987978]
[1765926448897,0.05508,87756.0,87755.0,0.0677078]
[1765926449103,0.0664773,87759.0,87758.0,0.0677074]
[1765926449399,0.09361431,87759.0,87758.0,0.0677074]
[1765926449589,0.09361431,87759.0,87758.0,0.0113974]
[1765926449789,0.05508,87754.0,87753.0,0.4285081]
[1765926450089,0.05508,87748.0,87747.0,0.05648088]
[1765926450400,0.0664787,87748.0,87747.0,0.06787978]
[1765926450584,0.05508,87748.0,87747.0,0.06787978]
[1765926452192,0.05508,87748.0,87747.0,0.06887978]
[1765926452392,0.05508,87748.0,87747.0,0.06987978]
[1765926457897,0.09508,87748.0,87747.0,0.00217088]
[1765926458108,0.09508,87748.0,87747.0,0.02990088]
[1765926458309,0.12223142,87748.0,87747.0,0.02990088]
[1765926458509,0.12223142,87748.0,87747.0,0.05761088]
[1765926459609,0.09508,87748.0,87747.0,0.05761088]
[1765926460211,0.12223521,87748.0,87747.0,0.05761088]
[1765926460514,0.12223521,87748.0,87747.0,0.00217088]
[1765926467311,0.12223521,87748.0,87747.0,0.05761088]
[1765926467514,0.12223521,87748.0,87747.0,0.00217088]
[1765926468214,0.12223521,87748.0,87747.0,0.05761088]
[1765926475020,0.08223521,87748.0,87747.0,0.05761088]
[1765926475208,0.02715521,87748.0,87747.0,0.05761088]
[1765926475411,0.0113974,87759.0,87747.0,0.05761088]
[1765926475412,0.02985,87759.0,87758.0,0.0668374]
[1765926475612,0.0113962,87768.0,87763.0,0.0668368]
[1765926475810,0.03002088,87764.0,87763.0,0.0668368]
[1765926476122,0.05715859,87764.0,87763.0,0.0668368]
[1765926476510,0.03002088,87764.0,87763.0,0.0668368]
[1765926476724,0.00017088,87764.0,87763.0,0.0668368]
[1765926476906,0.07211758,87764.0,87763.0,0.0668368]
[1765926477113,0.09924475,87764.0,87763.0,0.0668368]
[1765926477316,0.07211758,87764.0,87763.0,0.0668368]
[1765926477513,0.07411758,87764.0,87763.0,0.0668368]
[1765926478023,0.07311758,87764.0,87763.0,0.0668368]
[1765926478213,0.06072088,87764.0,87763.0,0.0668368]
[1765926478726,0.0878325,87764.0,87763.0,0.0668368]
[1765926481223,0.0868325,87764.0,87763.0,0.0668368]
[1765926483227,0.05972088,87764.0,87763.0,0.0668368]
[1765926485629,0.08680561,87764.0,87763.0,0.0668368]
[1765926486620,0.08780561,87764.0,87763.0,0.0668368]
[1765926488527,0.06072088,87764.0,87763.0,0.0668368]
[1765926494028,0.10072088,87764.0,87763.0,0.05544]
[1765926494216,0.10072088,87764.0,87755.0,0.3608]